Cogmind - Beta 16 @@@ ROGUE MODE // 2025.10.28 @ 20:19:34 Player: Mxykikker Result: Destroyed by D-53 Grenadier with Mini Grenade Launcher Performance ------------- Evolutions (0) 0 Regions Visited (3) 600 Robots Destroyed (35) 175 Value Destroyed (923) 923 Prototype IDs (12) 240 Alien Tech Used (0) 0 Bonus (0) 0 TOTAL SCORE: 1938 Bonus ------- None Cogmind --------- Core Integrity 0/250 Matter 293/300 Energy 100/100 System Corruption 3% Temperature Cool (0) Movement Rolling (200) Ox8 Location -9/Recycling Parts ------- > --- POWER (1) -------- (None) > --- PROPULSION (2) --- Wheel > --- UTILITY (2) ------ Huge Storage Unit > --- WEAPON (2) ------- Subdweller Laser > --- INVENTORY (25) --- Gun Armor Scrap Shield Scrap Shield Makeshift Hacking Suite Subdweller Beam Cannon Subdweller Machine Gun Multitool Ripper SUBCON Basin (Full) Peak State ------------ > --- POWER ------------ Makeshift Power Source > --- PROPULSION ------- Wheel Subdweller Monowheel > --- UTILITY ---------- Huge Storage Unit > --- WEAPON ----------- Subdweller Laser Subdweller Beam Cannon > --- INVENTORY -------- Gun Armor Scrap Shield Scrap Shield Makeshift Hacking Suite Subdweller Machine Gun Subdweller Shrapnel Launcher Multitool Ripper SUBCON Basin [Rating: 33] Favorites ----------- Power Makeshift Power Source Engine Makeshift Power Source Propulsion Wheel Treads Light Treads Wheel Wheel Utility Huge Storage Unit Device Seismic Detector Storage Huge Storage Unit Protection Light Armor Plating Weapon Subdweller Laser Energy Gun Subdweller Laser Energy Cannon Subdweller Beam Cannon Ballistic Gun Assault Rifle Ballistic Cannon Improved Light Cannon Launcher Subdweller Shrapnel Launcher Build | -11 -10 -10 -9 ------- Run | Yrd Mat Sub Rec Slots Evolved . | . . . . Power . | . . . . Propulsion . | . . . . Utility . | . . . . Weapon . | . . . . Parts Attached 32 | 8 5 18 1 Power 5 | 1 1 3 . Engine 5 | 1 1 3 . Core . | . . . . Reactor . | . . . . Propulsion 10 | 2 . 7 1 Treads 2 | 2 . . . Leg . | . . . . Wheel 8 | . . 7 1 Hover . | . . . . Flight . | . . . . Utility 7 | 3 2 2 . Device 2 | 2 . . . Storage 3 | 1 2 . . Processor . | . . . . Hackware . | . . . . Protection 2 | . . 2 . Artifact . | . . . . Weapon 10 | 2 2 6 . Energy Gun 2 | . . 2 . Energy Cannon 1 | . . 1 . Ballistic Gun 3 | 2 . 1 . Ballistic Cannon 3 | . 2 1 . Launcher 1 | . . 1 . Special Weapon . | . . . . Impact Weapon . | . . . . Slashing Weapon . | . . . . Piercing Weapon . | . . . . Special Melee Weapon . | . . . . Unidentified Prototypes . | . . . . Parts Lost 9 | . . 6 3 Power 2 | . . 1 1 Propulsion 5 | . . 4 1 Utility 1 | . . 1 . Weapon 1 | . . . 1 Highest Loss Streak 3 | . . 2 3 To Critical Strikes . | . . . . Average Backups 14 | . 6 20 8 Power . | . . . . Propulsion 1 | . . 2 . Utility 7 | . 3 9 4 Weapon 5 | . 2 7 3 Tool/Special . | . . . . Unused Backups 21 | . . 15 6 Power . | . . . . Propulsion 2 | . . 2 . Utility 12 | . . 8 4 Weapon 6 | . . 5 1 Tool/Special 1 | . . . 1 Average Slot Usage (%) 96 | . 99 97 75 Engine 13 | . 14 13 14 Treads 9 | . 28 2 . Wheel 17 | . . 25 18 Device 4 | . 14 . . Storage 14 | . 14 14 14 Protection 7 | . . 11 . Energy Gun 8 | . . 12 14 Energy Cannon 7 | . . 10 13 Ballistic Gun 4 | . 13 . . Ballistic Cannon 6 | . 14 3 . Peak Build Rating 33 | 7 10 33 32 Average Rating 15 | 4 8 17 31 On Entrance 12 | . 7 10 31 Avg Prop Armor Cover (%) 4 | . . 4 . Naked Turns . | . . . . Heaviest Build 100 | 15 94 100 96 Greatest Support 40 | 40 40 40 20 Greatest Overweight (x) 9 | . 2 9 9 Average Overweight (x) 4 | . 1 5 6 Largest Inventory Capacity 25 | 8 25 25 25 Average Capacity 24 | 6 23 25 25 Most Carried 25 | 2 14 25 25 Average Carried 17 | . 6 23 25 Final Capacity 25 | 8 25 25 25 Final Carried 25 | 1 14 25 25 Class Distribution -------------------- 97% | Mutant Dominant Class ---------------- Mutant | -10/Materials Mutant | -10/Subcaves Mutant | -9/Recycling Resources | -11 -10 -10 -9 ----------- Run | Yrd Mat Sub Rec Matter Collected 1318 | 312 397 589 20 Remotely 90 | 90 . . . Salvage Created 1257 | 105 424 728 . Parts 84 | 7 30 47 . Haulers Intercepted 1 | . 1 . . Recyclers Shooed . | . . . . Parts Field Recycled . | . . . . Retrieved Matter . | . . . . Parts Self-Destructed 17 | . . 17 . Prevented . | . . . . Parts Restored . | . . . . Kills | -11 -10 -10 -9 ------- Run | Yrd Mat Sub Rec Combat Hostiles Destroyed 27 | . 10 17 . Guns 8 | . 4 4 . Cannons 10 | . 6 4 . AOE 8 | . . 8 . Classes Destroyed 10 | 2 4 4 . Builder 1 | . 1 . . Tunneler 1 | 1 . . . Hauler 1 | . 1 . . Recycler 3 | 1 2 . . Turret 2 | . . 2 . Swarmer 8 | . 6 2 . Grunt 4 | . 4 . . Sentry 1 | . . 1 . Artisan 1 | . . 1 . Subdweller 14 | . . 14 . Best Kill Streak 5 | 1 5 4 . Combat Bots Only 3 | . 3 2 . Max Kills in Single Turn 3 | 1 2 3 . Gunslinging . | . . . . Exploded 2 | . . 2 . Melee . | . . . . Uniques/NPCs Destroyed . | . . . . Combat | -11 -10 -10 -9 -------- Run | Yrd Mat Sub Rec Hostile Shots Fired 129 | . 50 66 13 Missed 32 | . 5 24 3 Hits 97 | . 45 42 10 Projectile 97 | . 45 42 10 AOE 5 | . . . 5 Critical Strikes 2 | . 1 1 . Damage Taken 1521 | . 426 873 222 Core 258 | . 65 150 43 Absorbed by Shields . | . . . . Core Remaining (%) 100 | 100 . . . Volleys Fired 99 | 7 30 61 1 Largest 2 | 2 2 2 2 Hottest 140 | 40 66 140 100 Shots Fired 165 | 14 60 90 1 Gun 72 | 14 23 34 1 Cannon 84 | . 37 47 . Launcher 9 | . . 9 . Special . | . . . . Kinetic 114 | 14 60 40 . Thermal 51 | . . 50 1 Explosive . | . . . . Electromagnetic . | . . . . Robot Hit Streak 19 | 3 5 19 . Robot Miss Streak 5 | 2 5 2 . Penetration Max . | . . . . Secondary Targets . | . . . . Shots Hit Robots 77 | 5 28 44 . Core Hits 46 | 3 14 28 1 Critical Kills 3 | . . 3 . Critical Parts Destroyed 1 | . 1 . . Critical Strikes 6 | . 3 3 . Meltdown 2 | . . 2 . Destroy 2 | . 1 1 . Blast 2 | . 2 . . Melee Attacks . | . . . . Impact . | . . . . Slashing . | . . . . Piercing . | . . . . Sneak Attacks . | . . . . Combat Hostiles . | . . . . Follow-up Attacks . | . . . . Damage Inflicted 2184 | 67 551 1548 18 Guns 533 | 67 186 262 18 Cannons 906 | . 365 541 . Explosions 738 | . . 738 . Melee . | . . . . Ramming 7 | . . 7 . Kinetic 1566 | 67 551 948 . Thermal 611 | . . 593 18 Explosive . | . . . . Electromagnetic . | . . . . Impact . | . . . . Slashing . | . . . . Piercing . | . . . . Highest Corruption 3 | . 3 3 3 Average Corruption 2 | . 2 3 3 Corruption Purged . | . . . . Corruption Blocked . | . . . . Effects 82 | . 18 58 6 Message Errors 22 | . 2 18 2 Matter Fused 19 | . 3 14 2 Heat Flow Errors 9 | . 1 7 1 Energy Discharges 8 | . 3 5 . Parts Fused 1 | . 1 . . Data Loss (minor) 12 | . 6 5 1 Data Loss (major) 2 | . . 2 . Misfires 5 | . 1 4 . Alerts 4 | . 1 3 . Overload Shots . | . . . . Overflow Damage 21 | . 4 17 . Projectiles 4 | . 4 . . Explosions 17 | . . 17 . Melee . | . . . . Knockbacks 8 | . 5 3 . Impact 1 | . . 1 . Kinetic 6 | . 4 2 . Secondary 1 | . 1 . . Self-Inflicted Damage . | . . . . Shots . | . . . . Rammed 3 | . . 3 . Targets Rammed 3 | . . 3 . Kicked . | . . . . Crushed . | . . . . Highest Temperature 283 | . 124 283 275 Average Temperature 51 | . 19 54 108 Received Heat Transfer 604 | . 84 496 24 Effects 3 | . . 2 1 Energy Bleed 1 | . . . 1 Interference 2 | . . 2 . Siege Activations . | . . . . Martial Activations . | . . . . Shielding Activations . | . . . . Robots Disrupted . | . . . . Combat Hostiles . | . . . . Robots Corrupted . | . . . . Combat Hostiles . | . . . . Parts Fried . | . . . . Impact Corruptions . | . . . . Robots Melted 2 | . . 2 . Combat Hostiles 2 | . . 2 . Parts Melted 4 | . . 4 . Heat Transferred 788 | . . 769 19 Parts Sabotaged . | . . . . Parts Stolen . | . . . . Parts Stripped . | . . . . Power Chain Reactions . | . . . . Alert | -11 -10 -10 -9 ------- Run | Yrd Mat Sub Rec Maximum Alert Level . | . . . . Low Security (%) 100 | 100 100 . 100 Level 1 . | . . . . Level 2 . | . . . . Level 3 . | . . . . Level 4 . | . . . . Level 5 . | . . . . High Security . | . . . . Max Security . | . . . . Peak Influence 127 | 5 127 . 46 Initial 36 | . . . 36 Average 33 | . 41 . 15 Influence Increases 631 | 10 429 100 92 Destroy 0b10 Robot/C 300 | . 200 100 . Destroy 0b10 Robot/NC 30 | 10 20 . . Destroy Leader 42 | . 42 . . Successful Hack 14 | . 12 . 2 Select Force Hacks 120 | . 30 . 90 Disable Machine 15 | . 15 . . Destroy Structure 5 | . 5 . . Partial Spotted 45 | . 45 . . Lose Combat Pursuer 60 | . 60 . . Influence Decreases 631 | 10 386 66 169 Entered New Map 63 | . . 22 41 Time Decay 566 | 10 386 44 126 Lost Part 2 | . . . 2 Squads Dispatched 2 | . 2 . . Investigation 1 | . 1 . . Extermination . | . . . . Reinforcement 1 | . 1 . . Assault . | . . . . Garrison . | . . . . Intercept . | . . . . Searches Triggered . | . . . . Construction Impeded . | . . . . Haulers Reinforced . | . . . . Active Scanning Responses . | . . . . Cargo Convoy Interrupts . | . . . . Stealth | -11 -10 -10 -9 --------- Run | Yrd Mat Sub Rec Distress Signals 2 | . 1 . 1 Communications Jammed . | . . . . Distress Signals . | . . . . Times Spotted 54 | . 28 19 7 Peak Tracking Total 7 | . 4 5 7 Tactical Retreats 2 | . 2 . . Traps | -11 -10 -10 -9 ------- Run | Yrd Mat Sub Rec Traps Triggered 3 | . 2 1 . Indirectly . | . . . . Trap Hack Attempts . | . . . . Triggered . | . . . . Disarmed . | . . . . Reprogrammed . | . . . . Reused . | . . . . Traps Extracted . | . . . . Installed . | . . . . Triggered . | . . . . Machines | -11 -10 -10 -9 ---------- Run | Yrd Mat Sub Rec Machines Disabled 6 | . 1 5 . Max in Single Turn 2 | . 1 2 . Machines Repaired . | . . . . Machines Dismantled . | . . . . Machines Sabotaged . | . . . . Overloaded Fab Kills . | . . . . Hacking | -11 -10 -10 -9 --------- Run | Yrd Mat Sub Rec Machines Accessed 14 | . 4 4 6 Terminals 6 | . 3 . 3 Fabricators . | . . . . Repair Stations . | . . . . Recycling Units 4 | . 1 . 3 Scanalyzers . | . . . . Garrison Access . | . . . . Total Hacks 41 | . 14 9 18 Successful 27 | . 8 9 10 Failed 14 | . 6 . 8 Catastrophic 2 | . 2 . . Database Lockouts . | . . . . Manual 20 | . 7 . 13 Terminals 17 | . 10 . 7 Fabricators . | . . . . Repair Stations . | . . . . Recycling Units 15 | . 4 . 11 Scanalyzers . | . . . . Garrison Access . | . . . . Terminal Hacks 14 | . 5 9 . Record 6 | . . 6 . Part Schematic 1 | . 1 . . Open Door 1 | . . 1 . Branch Access Points 1 | . 1 . . Terminal Index 1 | . 1 . . Hauler Manifests 1 | . 1 . . Registered Components 1 | . 1 . . Proto ID Catalog 1 | . . 1 . Release Object 1 | . . 1 . Fabricator Hacks . | . . . . Repair Station Hacks . | . . . . Recycling Unit Hacks 4 | . 1 . 3 Report Inventory 4 | . 1 . 3 Scanalyzer . | . . . . Garrison Access Hacks . | . . . . Unauthorized Hacks 9 | . 2 . 7 Terminals 1 | . . . 1 Botnet 1 | . . . 1 Fabricators . | . . . . Repair Stations . | . . . . Recycling Units 8 | . 2 . 6 Reject 2 | . . . 2 Recyclers 2 | . 1 . 1 Tunnel 4 | . 1 . 3 Scanalyzers . | . . . . Garrison Access . | . . . . Data Cores Recovered . | . . . . Used . | . . . . Hacking Detections 7 | . 3 . 4 Full Trace Events 2 | . . . 2 Feedback Events . | . . . . Feedback Blocked . | . . . . Robot Schematics Acquired . | . . . . Robots Built . | . . . . Authchips . | . . . . Time . | . . . . Total Robot Build Rating . | . . . . Part Schematics Acquired 1 | . 1 . . Parts Built . | . . . . Authchips . | . . . . Time . | . . . . Total Part Build Rating . | . . . . Part Studies Acquired . | . . . . Parts Repaired . | . . . . Time . | . . . . Parts Recycled . | . . . . Recycled Matter . | . . . . Retrieved Matter . | . . . . Retrieved Components . | . . . . Parts Scanalyzed . | . . . . Part Schematics Acquired . | . . . . Parts Damaged . | . . . . Bothacking | -11 -10 -10 -9 ------------ Run | Yrd Mat Sub Rec Used RIF Installer . | . . . . Robots Hacked . | . . . . Non-combat . | . . . . Combat . | . . . . Robot Hacks Applied . | . . . . Relay Couplers Released . | . . . . Fabnet Peak Effective % . | . . . . Robots Rewired . | . . . . Allies Hacked . | . . . . Hacks Repelled . | . . . . Allies | -11 -10 -10 -9 -------- Run | Yrd Mat Sub Rec Total Allies . | . . . . Largest Group . | . . . . Highest-Rated Group . | . . . . Highest-Rated Ally . | . . . . Total Orders . | . . . . Ally Attacks . | . . . . Total Damage . | . . . . Kills . | . . . . Allies Corrupted . | . . . . Allies Melted . | . . . . Intel | -11 -10 -10 -9 ------- Run | Yrd Mat Sub Rec Active Infowar (turns) 1402 | 6 1396 . . Seismic 1402 | 6 1396 . . Robot Analysis Total . | . . . . Derelict Logs Recovered 3 | . . 3 . Drone Launches . | . . . . Drone Recoveries . | . . . . Exploration | -11 -10 -10 -9 ------------- Run | Yrd Mat Sub Rec Turns Passed 4860 | 102 1396 2984 378 Spaces Moved 2230 | 45 439 1540 206 Core 3 | 3 . . . Treads 555 | 42 439 74 . Legs . | . . . . Wheels 1672 | . . 1466 206 Hover . | . . . . Flight . | . . . . Fastest Speed 50 | 50 160 131 140 Average Speed 196 | 152 281 176 180 Slowest Speed 480 | 160 320 480 215 Overloaded Moves . | . . . . Propulsion Burnouts . | . . . . Robots Hopped . | . . . . Potential Cave-ins . | . . . . Cave-ins Triggered . | . . . . Exploration Rate (%) 53 | 5 64 87 57 Regions Visited 3 Branch Regions 2 Pre-discovered Areas 4 | . 1 . 3 Known Exits Taken 1 | . . 1 . Unknown Exits Taken 2 | 1 1 . . Scrap Searched 12 | . . 12 . Spaces Dug 15 | . . 15 . Terrain Destroyed 100 | . 1 99 . Melee . | . . . . Projectile 3 | . 1 2 . AOE 97 | . . 97 . Terrain Rammed . | . . . . Walls Destroyed . | . . . . Machines Disabled . | . . . . Actions | -11 -10 -10 -9 --------- Run | Yrd Mat Sub Rec Total 2538 | 61 544 1724 209 Wait 92 | . 51 41 . Move 2227 | 44 438 1539 206 Hop . | . . . . Pick Up 37 | 1 13 23 . Fast Attach 12 | 7 2 2 1 Attach 9 | 1 . 8 . Detach 6 | 1 2 3 . Swap 20 | . 3 16 1 Drop 33 | . 5 28 . Fire 99 | 7 30 61 1 Melee . | . . . . Ram . | . . . . Kick . | . . . . Crush 3 | . . 3 . Escape Stasis . | . . . . Rewire . | . . . . Trap . | . . . . Miscellaneous . | . . . . Route ------- -11/Scrapyard -10/Materials (discovered 4 exits: [*Mat] / *Min x2 / *Sub) -10/Subcaves (discovered 3 exits: *Mat x2 / *Rec) -9/Recycling History --------- Turn | Location | Event 8 | -11/Scrapyard | Discovered new exit (range 15) 103 | -11/Scrapyard | Entered Materials 305 | -10/Materials | Build established: Mutant 382 | -10/Materials | Discovered new exit (range 16) 580 | -10/Materials | Identified exit to Mines 1429 | -10/Materials | Discovered new exit (range 12) 1499 | -10/Materials | Entered Subcaves 1500 | -10/Subcaves | Approached by a straggling Scientist 1563 | -10/Subcaves | Ambushed by angry Subdweller bent on revenge 1723 | -10/Subcaves | Shifting Twisted Machinery released Sub. Monowheel 1745 | -10/Subcaves | Shifting Twisted Machinery released Sub. Power Source 1923 | -10/Subcaves | Shifting Twisted Machinery released Battle Cannon 1923 | -10/Subcaves | Shifting Twisted Machinery released Sub. Shrapnel Launcher 2017 | -10/Subcaves | Discovered new exit (range 15) 2151 | -10/Subcaves | Identified exit to Materials 2157 | -10/Subcaves | Disturbed a concealed Subdweller 2261 | -10/Subcaves | A swath of the cavern ceiling suddenly collapsed 2819 | -10/Subcaves | Disturbed a concealed Subdweller 3191 | -10/Subcaves | Disturbed a concealed Subdweller 3285 | -10/Subcaves | Visited 4L-MR0's lab 3306 | -10/Subcaves | Found Gun Armor 3453 | -10/Subcaves | Core integrity fell below 50% 3535 | -10/Subcaves | Ambushed by Subdwellers from Twisted Machinery 3568 | -10/Subcaves | Identified exit to Recycling 3568 | -10/Subcaves | Learned Research machine intel 4150 | -10/Subcaves | Found SUBCON Basin 4267 | -10/Subcaves | Learned Materials stockpile data 4308 | -10/Subcaves | Learned location of 1 exit from Materials 4430 | -10/Subcaves | Shifting Twisted Machinery released Sub. Machine Gun 4439 | -10/Subcaves | Core integrity fell below 20% 4483 | -10/Subcaves | Entered Recycling 4861 | -9/Recycling | Destroyed by D-53 Grenadier with Mini Grenade Launcher Last Messages --------------- 04847_ D-53 Grenadier springs to life. 04847_ G-34 Mercenary destroyed. 04847_ U-05 Engineer destroyed. 04847_ K-01 Serf destroyed. 04847_ G-34 Mercenary destroyed. 04847_ S-10 Pest destroyed. 04847_ I-25 Savior springs to life. 04847_ D-53 Grenadier springs to life. 04847_ G-34 Mercenary springs to life. 04847_ P-60 Hacker springs to life. 04848_ Wheel destroyed. 04848_ G-34 Mercenary destroyed. 04849_ Sub. Shrapnel Launcher shoots sparks and powers down. 04850_ D-53 Grenadier shuts down. 04850_ I-25 Savior destroyed. 04852_ The unstable cave ceiling collapses. 04853_ Broken Sub. Shrapnel Launcher destroyed. 04857_ The unstable cave ceiling collapses. 04861_ Mak. Power Source destroyed. Map ----- +----------------------------------------------------+ | ########### ############### ! ########### | | #?????????###?????????????#!!!#???????????##### | | ########??????????????????#####???????????????? | | ## ?????????????????????????????????????? | | ## """#????????????????????????????????????? | | ## """#????????????????????????????????????? | | ## """#????????????????????????????????????? | | ## #????????????????????????????????????? | | ## """#????????????????????????????????????? | | ## """#????????????????????????????????????? | | # """#????????????????????????????????????? | | # #????????????????????????????????????? | | + """#????????????????????????????????????? | | # """#???????????????###+?????????????????? | | # """#?????????????? !????????????????? | | ##### #??########???? ! ????????????????? | | ????# """#??# %[ #??? ?????????????????? | | ????# """#??# | ##?? ??????????????????? | | ????# """#??#] #? = ???????????????????? | | ????# #??# = ## ????????????????????? | | ????# """#??# %[ [%## = ?????????????????????? | | ????# """#??#!%%= *# # ??????????????????????? | | ????# """#??# ] % % #???????????????????????? | | ????# #??# #???????????????????????? | | ##########+###### p # ######r###???????????????? | | r r d @ #???????????? | | ##???????????????? | | #????????????????? | | #####]]]######### # ##+###+#????????????????? | | ????# ]]????????##### # ??????????????????????? | | ????###?????????????#### ?????????????????????? | | ???????????????????????r ????????????????????? | | ???????????????????????# ???????????????????? | | ???????????????????????# ??????????????????? | | ???????????????????????# ?????????????????? | | ???????????????????????? #????????????????? | | ???????????????????????? #????????????????? | | ???????????????????????? ?????????????????? | | ????????????????????????######???????????????????? | | ?????????????????????????????????????????????????? | | ?????????????????????????????????????????????????? | | ?????????????????????????????????????????????????? | | ?????????????????????????????????????????????????? | | ?????????????????????????????????????????????????? | | ?????????????????????????????????????????????????? | | ?????????????????????????????????????????????????? | | ?????????????????????????????????????????????????? | | ?????????????????????????????????????????????????? | | ?????????????????????????????????????????????????? | | ?????????????????????????????????????????????????? | +----------------------------------------------------+ Best States ------------- Heat Dissipation 25 Energy Generation 15 Energy Capacity 250 Matter Stores 300 Matter Capacity 300 Sight Range 16 Terrain Scan Density 10 Armor Coverage 150 Evasion (%) 40 Recoil Reduction 2 Item Schematics ----------------- Cargo Storage Unit | -10/Materials | Hacked Robot Schematics ------------------ None Fabricated ------------ Nothing Repaired ---------- Nothing Studied --------- None Alien Tech Used ----------------- None Achievements -------------- Into The Breach Challenges ------------ None Game ------ Seed MeleeFrostReconstructor Manual? 0 Play Time 00:33:27 Cumulative 90.2 hours Start 2025.10.28 @ 19:47:44 End 2025.10.28 @ 20:19:34 Sessions 1 Manual Loads 0 Difficulty Rogue Special Mode None Game No. 140 Rogue 140 Adventurer 0 Explorer 0 Win Type - Total 0 Types 0/0/0/0/0/0/0/0/0/0 Lore% 28 Gallery% 32 Achievement% 26 Wizard Run 0 Options --------- Layout 1 ASCII 0 Keyboard 0 Movement Arrows Keybinds 0 Fullscreen 1 Font 24/Smallcaps Map View 50x35 Zoom Use 0% Tactical HUD 1 Map Filters NONE Filters NONE Steam 1 RUN: a79dbd5d-c164-49d9-980f-67611774d60d